bitfinex/quotes_BTCUSD_20250525
["timestamp","ask_amount","ask_price","bid_price","bid_amount"]
[1748212890532,6.417e-05,108420.0,108410.0,0.96671672]
[1748212891206,0.03316417,108420.0,108410.0,0.96671672]
[1748212891382,0.0331,108420.0,108410.0,0.96671672]
[1748212891588,0.03127829,108440.0,108430.0,0.19367229]
[1748212892128,0.21571207,108440.0,108430.0,0.19367229]
[1748212892335,0.21571207,108440.0,108430.0,0.19367237]
[1748212892956,0.21871207,108440.0,108430.0,0.19467237]
[1748212893136,0.21871207,108440.0,108430.0,0.20389431]
[1748212893315,0.23221952,108440.0,108430.0,0.20389431]
[1748212893522,0.23321952,108440.0,108430.0,0.20389431]
[1748212893732,0.04878574,108440.0,108430.0,0.20389431]
[1748212894352,0.03956414,108440.0,108430.0,0.20389431]
[1748212894567,0.08820725,108440.0,108430.0,0.20389431]
[1748212894986,0.06976414,108440.0,108430.0,0.20389431]
[1748212895199,0.06976414,108440.0,108430.0,0.21389431]
[1748212895365,0.07898565,108440.0,108430.0,0.21389431]
[1748212895802,0.06976371,108440.0,108430.0,0.21389431]
[1748212896003,0.07898514,108440.0,108430.0,0.21389431]
[1748212896440,0.08820665,108440.0,108430.0,0.21389431]
[1748212897625,0.01750745,108440.0,108430.0,0.30343987]
[1748212900648,0.01750745,108440.0,108430.0,0.33523987]
[1748212900849,0.01750745,108440.0,108430.0,0.83337479]
[1748212901273,0.01750745,108440.0,108430.0,0.33523987]
[1748212901758,0.01750745,108440.0,108430.0,0.34606452]
[1748212902381,0.01750745,108440.0,108430.0,0.99155944]
[1748212902632,0.07807173,108440.0,108430.0,0.02182465]
[1748212902786,0.29550551,108440.0,108430.0,0.0310471]
[1748212902971,0.29550551,108440.0,108430.0,0.011]
[1748212903240,0.29550551,108440.0,108430.0,0.18622816]
[1748212903370,0.28628434,108440.0,108430.0,0.18622816]
[1748212903574,0.27706291,108440.0,108430.0,0.011]
[1748212903776,0.27706291,108440.0,108430.0,0.17700571]
[1748212904322,0.27706291,108440.0,108430.0,0.00363414]
[1748212904683,0.05134439,108430.0,108420.0,0.20450069]
[1748212905105,0.05134439,108430.0,108420.0,0.01082465]
[1748212905106,0.22657324,108430.0,108420.0,0.01082465]
[1748212905312,0.26879577,108430.0,108420.0,0.18606897]
[1748212905493,0.26879577,108430.0,108420.0,0.01082465]
[1748212906273,0.02766863,108420.0,108410.0,0.23297937]
[1748212906413,0.02766863,108420.0,108410.0,0.32252493]
[1748212906617,0.02766855,108420.0,108410.0,0.32252493]
[1748212907044,0.0184455,108420.0,108410.0,0.32252493]
[1748212907248,0.01844541,108420.0,108410.0,0.32252493]
[1748212907769,0.01844541,108420.0,108410.0,0.31170028]
[1748212907921,0.01944541,108420.0,108410.0,0.31370028]
[1748212908122,0.01944931,108420.0,108410.0,0.31370028]
[1748212908327,0.0286721,108420.0,108410.0,0.31370028]
[1748212908920,0.01944931,108420.0,108410.0,0.31370028]
[1748212909122,0.0194494,108420.0,108410.0,0.8433352]
[1748212909339,0.01022669,108420.0,108410.0,0.8433352]
[1748212910004,0.01022669,108420.0,108410.0,0.35962341]
[1748212910176,0.0194494,108420.0,108410.0,0.35962341]
[1748212910422,0.01022669,108420.0,108410.0,0.35962341]
[1748212910854,0.01944931,108420.0,108410.0,0.35962341]
[1748212911390,0.01022669,108420.0,108410.0,0.35962341]
[1748212911806,0.01944931,108420.0,108410.0,0.35962341]
[1748212912005,0.01022669,108420.0,108410.0,0.85775833]
[1748212912225,0.01022669,108420.0,108410.0,0.89035833]
[1748212912426,0.001,108420.0,108410.0,0.89035833]
[1748212912586,0.001,108420.0,108410.0,1.23035833]
[1748212913127,0.001,108420.0,108410.0,1.25800933]
[1748212913676,0.001,108420.0,108410.0,1.2435862]
[1748212915557,0.001,108420.0,108410.0,1.5593462]
[1748212919115,0.001,108420.0,108410.0,1.2435862]
[1748212919306,0.001,108420.0,108410.0,1.5593462]
[1748212922419,0.001,108420.0,108410.0,1.06121128]
[1748212922658,0.02866889,108420.0,108410.0,0.64447681]
[1748212922895,0.24643712,108420.0,108410.0,0.27680614]
[1748212923116,0.27733712,108420.0,108410.0,0.17803634]
[1748212923338,0.28656051,108420.0,108410.0,0.19648431]
[1748212923538,0.27733755,108420.0,108410.0,0.19648439]
[1748212923723,0.2588912,108420.0,108410.0,0.17803634]
[1748212923897,0.24966781,108420.0,108410.0,0.18726058]
[1748212924116,0.24866781,108420.0,108410.0,0.19448473]
[1748212924273,0.25166781,108420.0,108410.0,0.19548473]
[1748212924474,0.25366781,108420.0,108410.0,0.19548473]
[1748212924900,0.25066781,108420.0,108410.0,0.19448473]
[1748212925070,0.25566781,108420.0,108410.0,0.19548473]
[1748212925280,0.25566781,108420.0,108410.0,0.011]
[1748212925481,0.25566781,108420.0,108410.0,0.02022424]
[1748212926239,0.25566781,108420.0,108410.0,0.18626058]
[1748212926747,0.27020866,108420.0,108410.0,0.011]
[1748212927156,0.27020866,108420.0,108410.0,0.00363211]
[1748212928958,0.22490897,108410.0,108400.0,0.17527566]
[1748212929213,0.25540897,108410.0,108400.0,0.17542594]
[1748212929422,0.25540897,108410.0,108400.0,0.18465086]
[1748212929573,0.22490897,108410.0,108400.0,0.18465086]
[1748212929779,0.22490897,108410.0,108400.0,0.19387569]
[1748212929977,0.22490897,108410.0,108400.0,0.00015028]
[1748212929978,0.25760897,108410.0,108400.0,0.00015028]
[1748212930181,0.62129227,108400.0,108390.0,0.01]
[1748212930418,1.90497275,108400.0,108390.0,0.00263211]
[1748212930624,1.91497275,108400.0,108390.0,0.00263211]
[1748212930828,0.2030071,108370.0,108360.0,0.2313123]
[1748212931028,0.20300761,108370.0,108360.0,0.06519935]
[1748212931376,0.20300761,108370.0,108360.0,0.24976903]
[1748212931694,0.20200761,108370.0,108360.0,0.24976911]
[1748212931898,0.20200761,108370.0,108360.0,0.06519935]
[1748212932049,0.20302651,108360.0,108350.0,0.18535728]
[1748212932276,0.20302617,108360.0,108350.0,0.19508759]
[1748212932406,0.20302617,108360.0,108350.0,0.18585859]
[1748212932618,0.20302617,108360.0,108350.0,0.19508776]
[1748212932619,0.21225458,108360.0,108350.0,0.19508776]
[1748212932820,0.21225458,108360.0,108350.0,0.20431685]
[1748212933019,0.20302617,108360.0,108350.0,0.21354568]
[1748212933274,0.21225458,108360.0,108350.0,0.21354585]
[1748212933436,0.20302617,108360.0,108350.0,0.22277477]
[1748212933639,0.21225458,108360.0,108350.0,0.22277434]
[1748212934122,0.21025458,108360.0,108350.0,0.22277434]
[1748212934325,0.21025458,108360.0,108350.0,0.21354517]
[1748212934686,0.21125458,108360.0,108350.0,0.21354517]
[1748212934973,0.20202617,108360.0,108350.0,0.21654517]
[1748212935142,0.02768395,108360.0,108350.0,0.22277392]
[1748212935379,0.01372488,108360.0,108350.0,0.31431948]
[1748212935579,0.01472488,108360.0,108350.0,0.52501948]
[1748212935785,0.001,108360.0,108350.0,0.52501948]
[1748212936364,0.001,108360.0,108350.0,0.86501948]
[1748212937703,0.001,108360.0,108350.0,0.86301948]
[1748212937988,0.22140084,108400.0,108390.0,0.19374377]
[1748212938198,0.22140084,108400.0,108390.0,0.19374386]
[1748212938665,0.23062584,108400.0,108390.0,0.19374386]
[1748212938851,0.24436256,108400.0,108390.0,0.19374386]
[1748212939095,0.24736256,108400.0,108390.0,0.2029692]
[1748212939303,0.24751265,108400.0,108390.0,0.19374386]
[1748212939481,0.04456037,108400.0,108390.0,0.2029692]
[1748212939988,0.0537852,108400.0,108390.0,0.2029692]
[1748212940176,0.0587852,108400.0,108390.0,0.2029692]
[1748212940379,0.04956037,108400.0,108390.0,0.2029692]
[1748212940830,0.0587852,108400.0,108390.0,0.2029692]
[1748212941039,0.04956037,108400.0,108390.0,0.2029692]
[1748212941456,0.02188681,108400.0,108390.0,0.2029692]
[1748212941662,0.02188681,108400.0,108390.0,0.2351692]
[1748212941863,0.03111122,108400.0,108390.0,0.2351692]
[1748212942067,0.02188681,108400.0,108390.0,0.2351692]
[1748212942468,0.0311113,108400.0,108390.0,0.2351692]
[1748212942707,0.02188681,108400.0,108390.0,0.69521476]
[1748212942901,0.02188681,108400.0,108390.0,1.16296761]
[1748212943489,0.01688681,108400.0,108390.0,1.16296761]
[1748212943838,0.01488681,108400.0,108390.0,1.16396761]
[1748212944303,0.01488681,108400.0,108390.0,1.16496761]
[1748212945813,0.00115009,108400.0,108390.0,1.16496761]
[1748212947481,0.01467194,108400.0,108390.0,1.16496761]
[1748212952154,0.01467194,108400.0,108390.0,0.69721476]
[1748212953239,0.01467194,108400.0,108390.0,1.16496761]
[1748212953819,0.01467194,108400.0,108390.0,0.69721476]
[1748212954021,0.01467194,108400.0,108390.0,1.19555365]
[1748212957344,0.01467194,108400.0,108390.0,1.36367365]
[1748212963238,0.01467194,108400.0,108390.0,0.86533476]
[1748212963523,0.01467194,108400.0,108390.0,1.36367365]
[1748212965595,0.01467194,108400.0,108390.0,1.19555365]
[1748212965819,0.01467194,108400.0,108390.0,1.51103365]
[1748212966015,0.01467194,108400.0,108390.0,1.53868565]
[1748212968201,0.01467194,108400.0,108390.0,1.53652893]
[1748212971449,0.01467194,108400.0,108390.0,1.56553067]
[1748212971647,0.01467194,108400.0,108390.0,1.41817067]
[1748212971801,0.01467194,108400.0,108390.0,1.56553067]
[1748212972001,0.01467194,108400.0,108390.0,1.56525067]
[1748212974197,0.01467194,108400.0,108390.0,1.57442283]
[1748212977381,0.01467194,108400.0,108390.0,2.07276172]
[1748212977848,0.01467194,108400.0,108390.0,1.57442283]
[1748212982128,0.01467194,108400.0,108390.0,1.32175466]
[1748212982317,0.01467194,108400.0,108390.0,1.51549843]
[1748212982518,0.01467194,108400.0,108390.0,1.52472386]
[1748212982758,0.00115009,108400.0,108390.0,1.52472386]
[1748212983067,0.00115009,108400.0,108390.0,1.49572212]
[1748212985315,0.00115009,108400.0,108390.0,1.52892212]
[1748212987848,0.00115009,108400.0,108390.0,2.02726101]
[1748212988056,0.14005628,108440.0,108430.0,0.19367229]
[1748212988257,0.14014865,108440.0,108430.0,1.09675674]
[1748212988786,0.14014865,108440.0,108430.0,0.59841785]
[1748212989297,0.15436965,108440.0,108430.0,0.59841785]
[1748212989663,0.07389237,108440.0,108430.0,0.59841785]
[1748212989814,0.08311329,108440.0,108430.0,0.59841785]
[1748212990421,0.07389237,108440.0,108430.0,0.59841785]
[1748212991466,0.09680544,108440.0,108430.0,0.59841785]
[1748212991813,0.09680535,108440.0,108430.0,0.59841785]
[1748212992734,0.10602661,108440.0,108430.0,0.59841785]
[1748212992967,0.09680535,108440.0,108430.0,0.59841785]
[1748212993132,0.08758435,108440.0,108430.0,0.59841785]
[1748212993350,0.09680535,108440.0,108430.0,0.61288587]
[1748212994066,0.09680535,108440.0,108430.0,0.59841785]
[1748212994245,0.08758435,108440.0,108430.0,0.59841785]
[1748212995532,0.08758435,108440.0,108430.0,0.61288587]
[1748212995840,0.08758435,108440.0,108430.0,1.11122476]
[1748212996442,0.00809237,108440.0,108430.0,1.48465818]
[1748212996592,0.00809237,108440.0,108430.0,1.51232476]
[1748212996804,0.00509237,108440.0,108430.0,1.51232476]
[1748212996977,0.00709237,108440.0,108430.0,1.49785674]
[1748212997743,0.00209237,108440.0,108430.0,1.49785674]
[1748212997958,0.00609237,108440.0,108430.0,1.49885674]
[1748212998516,0.00209237,108440.0,108430.0,1.99719563]
[1748212998715,0.00309237,108440.0,108430.0,1.52649574]
[1748212999239,0.00109237,108440.0,108430.0,1.52549574]
[1748212999434,9.237e-05,108440.0,108430.0,1.52549574]
[1748212999647,9.237e-05,108440.0,108430.0,1.52749574]
[1748213000875,9.237e-05,108440.0,108430.0,1.52849574]
[1748213001300,9.237e-05,108440.0,108430.0,1.21329574]
[1748213001534,9.237e-05,108440.0,108430.0,1.52841574]
[1748213002387,9.237e-05,108440.0,108430.0,2.04129548]
[1748213002787,9.237e-05,108440.0,108430.0,2.05569131]
[1748213003475,9.237e-05,108440.0,108430.0,2.05369131]
[1748213004024,9.237e-05,108440.0,108430.0,1.55835242]
[1748213004427,9.237e-05,108440.0,108430.0,1.54295659]
[1748213004637,0.0161884,108450.0,108440.0,0.35]
[1748213004844,0.13735628,108510.0,108500.0,0.51511417]
[1748213005040,0.13735628,108510.0,108500.0,0.91937973]
[1748213005240,0.14692429,108510.0,108500.0,0.59544374]
[1748213005440,0.0631,108490.0,108480.0,0.31486881]
[1748213005650,0.0631,108490.0,108470.0,0.15669131]
[1748213005651,0.0631,108470.0,108460.0,0.48062577]
[1748213005806,0.0631,108470.0,108460.0,0.57939114]
[1748213006039,0.0631,108470.0,108460.0,0.91939114]
[1748213006252,0.0631,108470.0,108460.0,0.57939114]
[1748213006455,0.0631,108470.0,108460.0,0.91939114]
[1748213006811,0.0631,108470.0,108460.0,0.57939114]
[1748213007166,0.06419235,108470.0,108460.0,0.57939114]
[1748213007408,0.07788488,108470.0,108460.0,0.57939114]
[1748213007795,0.07888488,108470.0,108460.0,0.57939114]
[1748213008822,0.07788488,108470.0,108460.0,0.57939114]
[1748213009224,0.07788488,108470.0,108460.0,0.26467114]
[1748213009225,0.09010325,108470.0,108460.0,0.26467114]
[1748213009409,0.09010325,108470.0,108460.0,0.57939114]
[1748213010243,0.28407817,108460.0,108450.0,0.16590781]
[1748213010443,0.09967823,108460.0,108450.0,0.18434904]
[1748213010899,0.09967823,108460.0,108450.0,0.1751288]
[1748213011107,0.28407876,108460.0,108450.0,0.1751288]
[1748213011620,0.10067899,108460.0,108450.0,0.18434921]
[1748213011852,0.08064047,108450.0,108440.0,0.81218946]
[1748213012053,0.27427834,108450.0,108440.0,0.82141123]
[1748213012234,0.28349917,108450.0,108440.0,0.90173562]
[1748213012419,0.28349917,108450.0,108440.0,0.91095688]
[1748213013049,0.27427885,108450.0,108440.0,0.89451419]
[1748213013255,0.27427885,108450.0,108440.0,0.91095696]
[1748213013650,0.27427885,108450.0,108440.0,0.91095713]
[1748213014034,0.27427885,108450.0,108440.0,0.92217847]
[1748213014229,0.27427885,108450.0,108440.0,0.50088]
[1748213014441,0.25785529,108440.0,108430.0,0.001]
[1748213015267,0.25785529,108440.0,108430.0,0.15778308]
[1748213015472,0.26707672,108440.0,108430.0,0.17622747]
[1748213015643,0.27607672,108440.0,108430.0,0.17722747]
[1748213015825,0.09164251,108440.0,108430.0,0.17722755]
[1748213016271,0.09164251,108440.0,108430.0,0.16800527]
[1748213016272,0.11008486,108440.0,108430.0,0.16800527]
[1748213016475,0.10086335,108440.0,108430.0,0.17722738]
[1748213016685,0.10086335,108440.0,108430.0,0.16800527]
[1748213016924,0.009,108440.0,108430.0,0.77433377]
[1748213017048,0.009,108440.0,108430.0,1.17713377]
[1748213017865,0.09552204,108470.0,108460.0,0.17517875]
[1748213018232,0.09552195,108470.0,108460.0,0.41204431]
[1748213018604,0.10474083,108470.0,108460.0,0.41204431]
[1748213018817,0.10474074,108470.0,108460.0,0.41204431]
[1748213019139,0.11395962,108470.0,108460.0,0.41204431]
[1748213019316,0.12095962,108470.0,108460.0,0.41204431]
[1748213019546,0.11174074,108470.0,108460.0,0.41204431]
[1748213019732,0.30534247,108470.0,108460.0,0.01]
[1748213019988,0.89955335,108470.0,108460.0,0.01]
[1748213020170,0.98258698,108470.0,108460.0,0.00363417]
[1748213020719,0.21207826,108450.0,108440.0,0.15676816]
[1748213020925,0.07394073,108450.0,108440.0,0.17521059]
[1748213021166,0.06472024,108450.0,108440.0,0.17521059]
[1748213021373,0.08395842,108460.0,108450.0,0.1751949]
[1748213021951,0.10239796,108460.0,108450.0,0.1751949]
[1748213022152,0.28679773,108460.0,108450.0,0.1751949]
[1748213022377,0.27757851,108460.0,108450.0,0.16597466]
[1748213022564,0.27335904,108460.0,108450.0,0.30407417]
[1748213022762,0.27335904,108460.0,108450.0,0.32251541]
[1748213023435,0.27335904,108460.0,108450.0,0.3317359]
[1748213023632,0.28135904,108460.0,108450.0,0.34195631]
[1748213024031,0.28135904,108460.0,108450.0,0.3327359]
[1748213024379,0.28135904,108460.0,108450.0,0.3427359]
[1748213024551,0.28135904,108460.0,108450.0,0.011]
[1748213024755,0.27213948,108460.0,108450.0,0.011]
[1748213031850,0.26291967,108460.0,108450.0,0.011]
[1748213035065,0.0222193,108460.0,108450.0,0.82257935]
[1748213035220,0.03143877,108460.0,108450.0,0.82257935]
[1748213035422,0.03143877,108460.0,108450.0,0.32424046]
[1748213035970,0.03143886,108460.0,108450.0,0.29964046]
[1748213036330,0.25717817,108460.0,108450.0,0.41384022]
[1748213036497,0.23427817,108460.0,108450.0,0.42306063]
[1748213038341,0.013,108460.0,108450.0,0.97701976]
[1748213038559,0.013,108460.0,108450.0,1.31701976]
[1748213039133,0.013,108460.0,108450.0,1.31601976]
[1748213039358,0.01378488,108470.0,108460.0,0.22407875]
[1748213039650,0.01378488,108470.0,108460.0,0.8119632]
[1748213040613,0.02178488,108470.0,108460.0,0.8129632]
[1748213041638,0.02300333,108470.0,108460.0,0.82633811]
[1748213041845,0.01378488,108470.0,108460.0,0.82633811]
[1748213042657,0.01778488,108470.0,108460.0,0.82633811]
[1748213042952,0.01778488,108470.0,108460.0,0.83633811]
[1748213043202,0.02478488,108470.0,108460.0,0.83733811]
[1748213044662,0.02478488,108470.0,108460.0,0.59527983]
[1748213044663,0.05244075,108470.0,108460.0,0.59527983]
[1748213044902,0.03400325,108470.0,108460.0,0.59934378]
[1748213045121,0.02478488,108470.0,108460.0,1.14638267]
[1748213045640,0.02478488,108470.0,108460.0,0.28494378]
[1748213045641,0.04322204,108470.0,108460.0,0.28494378]
[1748213045846,0.26142377,108470.0,108460.0,0.25728528]
[1748213046049,0.27590532,108470.0,108460.0,0.011]
[1748213046223,0.77956635,108470.0,108460.0,0.011]
[1748213046444,0.28122746,108470.0,108460.0,0.011]
[1748213048713,0.27590566,108470.0,108460.0,0.1677398]
[1748213048868,0.27590566,108470.0,108460.0,0.02021998]
[1748213049352,0.27590566,108470.0,108460.0,0.011]
[1748213050306,0.27590566,108470.0,108460.0,0.15832]
[1748213052159,0.22760566,108470.0,108460.0,0.15832]
[1748213053266,0.25040566,108470.0,108460.0,0.15832]
[1748213054344,0.27330566,108470.0,108460.0,0.15832]
[1748213054981,0.2640867,108470.0,108460.0,0.31505972]
[1748213056744,0.2640867,108470.0,108460.0,0.16773972]
[1748213057403,0.2640867,108470.0,108460.0,0.17695953]
[1748213057999,0.2640867,108470.0,108460.0,0.16773972]
[1748213058201,0.2640867,108470.0,108460.0,0.15851982]
[1748213058439,0.27862755,108470.0,108460.0,0.011]
[1748213060202,0.36817311,108470.0,108460.0,0.011]
[1748213060610,0.37678415,108470.0,108460.0,0.011]
[1748213063316,0.03339592,108470.0,108460.0,0.29266538]
[1748213063642,0.04247657,108490.0,108480.0,0.49455174]
[1748213063643,0.03247657,108490.0,108480.0,0.49455174]
[1748213063860,0.04182512,108500.0,108490.0,0.21050126]
[1748213064066,0.04182512,108500.0,108490.0,1.37925344]
[1748213064474,0.04182512,108500.0,108490.0,1.57995842]
[1748213065313,0.04182512,108500.0,108490.0,1.60896016]
[1748213065520,0.04282512,108500.0,108490.0,1.60896016]
[1748213066606,0.01474325,108500.0,108490.0,1.58855389]
[1748213066903,0.01774325,108500.0,108490.0,1.58855389]
[1748213067078,0.01774325,108500.0,108490.0,1.59155389]
[1748213067292,0.01774325,108500.0,108490.0,1.54377962]
[1748213067696,0.01774325,108500.0,108490.0,1.06760657]
[1748213067869,0.01774325,108500.0,108490.0,1.53450448]
[1748213068092,0.01774325,108500.0,108490.0,1.22042448]
[1748213068231,0.01374325,108500.0,108490.0,1.54166448]
[1748213068432,0.01374325,108500.0,108490.0,1.54266448]
[1748213068721,0.00050053,108510.0,108500.0,0.56141417]
[1748213068916,0.00050053,108510.0,108500.0,1.11785764]
[1748213069764,0.00050053,108510.0,108500.0,1.13717482]
[1748213070319,0.00050053,108510.0,108500.0,0.67227691]
[1748213070524,0.00050053,108510.0,108500.0,0.99351691]
[1748213071361,0.00050053,108510.0,108500.0,0.63597691]
[1748213071610,0.00250053,108510.0,108500.0,0.95521691]
[1748213071837,0.00250053,108510.0,108500.0,0.95621691]
[1748213072516,0.00250053,108510.0,108500.0,0.6242552]
[1748213072742,0.00250053,108510.0,108500.0,0.9454952]
[1748213074790,0.03014647,108510.0,108500.0,0.43038103]
[1748213075036,0.21446127,108510.0,108500.0,0.59623921]
[1748213075237,0.21446127,108510.0,108500.0,0.4974774]
[1748213075437,0.21446127,108510.0,108500.0,0.50669373]
[1748213075649,0.20524621,108510.0,108500.0,0.01959547]
[1748213075854,0.18681533,108510.0,108500.0,0.34997197]
[1748213076038,0.18681533,108510.0,108500.0,0.4974374]
[1748213076916,0.18681533,108510.0,108500.0,0.50665381]
[1748213077836,0.18681533,108510.0,108500.0,0.49805834]
[1748213078053,0.18681533,108510.0,108500.0,0.011]
[1748213078262,0.20135618,108510.0,108500.0,0.011]
[1748213078993,0.19935618,108510.0,108500.0,0.011]
[1748213079432,0.20235618,108510.0,108500.0,0.011]
[1748213079657,0.22465618,108510.0,108500.0,0.01]
[1748213079861,0.22565618,108510.0,108500.0,0.01]
[1748213080965,0.00450053,108510.0,108500.0,0.14746544]
[1748213081117,0.00450053,108510.0,108500.0,0.8001037]
[1748213081327,0.00450053,108510.0,108500.0,0.79779974]
[1748213082608,0.00150053,108510.0,108500.0,0.80636452]
[1748213082803,0.00150053,108510.0,108500.0,0.81708623]
[1748213083014,0.00150053,108510.0,108500.0,0.81808623]
[1748213083224,0.00050053,108510.0,108500.0,0.81808623]
[1748213083442,0.00050053,108510.0,108500.0,0.82008623]
[1748213083646,0.00050053,108510.0,108500.0,0.80936452]
[1748213084915,0.00050053,108510.0,108500.0,0.82008623]
[1748213085768,0.00050053,108510.0,108500.0,0.70047223]
[1748213085960,0.00050053,108510.0,108500.0,1.02163223]
[1748213086165,0.01893098,108510.0,108500.0,0.97573223]
[1748213086343,0.00971567,108510.0,108500.0,0.97573223]
[1748213086541,0.00971567,108510.0,108500.0,0.94810623]
[1748213086747,0.01893073,108510.0,108500.0,0.89810623]
[1748213086951,0.0097155,108510.0,108500.0,0.89810623]
[1748213087153,0.01893064,108510.0,108500.0,0.89610623]
[1748213087438,0.0097155,108510.0,108500.0,0.94080623]
[1748213087657,0.0097155,108510.0,108500.0,0.92908452]
[1748213087865,0.00050053,108510.0,108500.0,0.92908452]
[1748213088100,0.00150053,108510.0,108500.0,0.92908452]
[1748213088328,0.01071567,108510.0,108500.0,0.92908452]
[1748213088774,0.0107155,108510.0,108500.0,0.92908452]
[1748213088976,0.00150053,108510.0,108500.0,0.92908452]
[1748213089201,0.01071559,108510.0,108500.0,0.92908452]
[1748213090049,0.00150053,108510.0,108500.0,0.92908452]
[1748213091694,0.00150053,108510.0,108500.0,0.95410184]
[1748213092401,0.20424587,108510.0,108500.0,0.90940217]
[1748213092621,0.21346144,108510.0,108500.0,0.91861816]
[1748213093286,0.02914664,108510.0,108500.0,0.91861816]
[1748213093504,0.02914664,108510.0,108500.0,0.90432255]
[1748213094058,0.21346144,108510.0,108500.0,0.72021749]
[1748213094283,0.21346144,108510.0,108500.0,0.88589024]
[1748213094506,0.02914664,108510.0,108500.0,0.90432231]
[1748213094709,0.02914664,108510.0,108500.0,0.90789621]
[1748213095035,0.21346144,108510.0,108500.0,0.90789621]
[1748213095236,0.21346144,108510.0,108500.0,0.58673621]
[1748213095439,0.22267718,108510.0,108500.0,0.8867443]
[1748213095771,0.21346204,108510.0,108500.0,0.89596055]
[1748213095972,0.21346204,108510.0,108500.0,0.90517671]
[1748213097053,0.2042463,108510.0,108500.0,0.91439228]
[1748213097477,0.21346195,108510.0,108500.0,0.90517629]
[1748213097680,0.21346195,108510.0,108500.0,0.91517629]
[1748213098423,0.21346195,108510.0,108500.0,0.89674413]
[1748213098626,0.21346195,108510.0,108500.0,0.90596038]
[1748213098820,0.21346195,108510.0,108500.0,0.91517646]
[1748213099046,0.22267769,108510.0,108500.0,0.7402878]
[1748213099245,0.22267769,108510.0,108500.0,0.90596038]
[1748213099448,0.02914715,108510.0,108500.0,0.90596038]
[1748213099587,0.02914715,108510.0,108500.0,0.91517654]
[1748213099788,0.0199315,108510.0,108500.0,0.91517654]
[1748213100022,0.0199315,108510.0,108500.0,0.92439262]
[1748213100224,0.0199315,108510.0,108500.0,0.9243922]
[1748213100620,0.2264463,108510.0,108500.0,0.37286039]
[1748213100819,0.75564614,108510.0,108500.0,0.03286039]
[1748213101183,0.86181167,108510.0,108500.0,0.03286039]
[1748213101519,0.20280107,108480.0,108470.0,0.35496646]
[1748213101724,0.23507512,108480.0,108470.0,0.78451202]
[1748213101926,0.21663983,108480.0,108470.0,0.26934932]
[1748213102153,0.2074218,108480.0,108470.0,0.10033606]
[1748213102347,0.2074218,108480.0,108470.0,0.0107905]
[1748213102553,0.2074218,108480.0,108470.0,0.3507905]
[1748213103253,0.01383782,108480.0,108470.0,0.60628029]
[1748213103421,0.22585734,108480.0,108470.0,0.58627091]
[1748213103642,0.20280209,108480.0,108470.0,0.42954556]
[1748213103850,0.19558406,108480.0,108470.0,0.42954556]
[1748213104049,0.19358406,108480.0,108470.0,0.42954556]
[1748213104249,0.19358406,108480.0,108470.0,0.34]
[1748213104608,0.19558406,108480.0,108470.0,0.34]
[1748213105388,0.19658406,108480.0,108470.0,0.35]
[1748213105592,0.25735546,108480.0,108470.0,0.01]
[1748213105810,0.87086083,108480.0,108470.0,0.00263632]
[1748213106019,0.98494724,108480.0,108470.0,0.00263632]
[1748213106233,0.7071271,108470.0,108460.0,0.00263632]
[1748213106439,0.79667266,108470.0,108460.0,0.00263632]
[1748213106682,0.23861958,108460.0,108450.0,0.0107905]
[1748213107511,0.01844039,108450.0,108440.0,0.1567633]
[1748213107731,0.19361958,108460.0,108450.0,0.16597398]
[1748213107732,0.02765842,108460.0,108450.0,0.16597398]
[1748213107942,0.03590686,108480.0,108470.0,0.51516251]
[1748213108153,0.22549075,108480.0,108470.0,0.59548953]
[1748213108580,0.21627315,108480.0,108470.0,0.59548953]
[1748213108786,0.0134714,108480.0,108470.0,0.60470807]
[1748213108997,0.03190712,108480.0,108470.0,0.79818807]
[1748213109196,0.02043546,108480.0,108470.0,0.79818807]
[1748213109409,0.02043529,108480.0,108470.0,0.79818807]
[1748213110180,0.01421752,108480.0,108470.0,0.79818807]
[1748213110394,0.005,108480.0,108470.0,0.79818807]
[1748213110600,0.02824874,108480.0,108470.0,0.79818807]
[1748213111093,0.0374666,108480.0,108470.0,0.79818807]
[1748213111272,0.02524874,108480.0,108470.0,0.79818807]
[1748213111429,0.02524874,108480.0,108470.0,0.77508807]
[1748213111430,0.04168429,108480.0,108470.0,0.77508807]
[1748213111640,0.05390232,108480.0,108470.0,0.77508807]
[1748213112226,0.2382681,108480.0,108470.0,0.73355074]
[1748213112425,0.2382681,108480.0,108470.0,0.74276953]
[1748213112426,0.23826878,108480.0,108470.0,0.74276953]
[1748213112654,0.22905109,108480.0,108470.0,0.42954556]
[1748213112811,0.04468523,108480.0,108470.0,0.75198824]
[1748213113014,0.23826929,108480.0,108470.0,0.75198824]
[1748213113700,0.23826929,108480.0,108470.0,0.74276962]
[1748213113895,0.22905143,108480.0,108470.0,0.74276971]
[1748213114132,0.22905143,108480.0,108470.0,0.7519885]
[1748213114309,0.2198334,108480.0,108470.0,0.57682556]
[1748213114516,0.01703114,108480.0,108470.0,0.75198816]
[1748213114718,0.02624866,108480.0,108470.0,0.75198816]
[1748213114919,0.02624866,108480.0,108470.0,0.79628816]
[1748213114920,0.003,108480.0,108470.0,0.79628816]
[1748213115122,0.003,108480.0,108470.0,0.81082901]
[1748213116010,0.002,108480.0,108470.0,0.81082901]
[1748213116213,0.002,108480.0,108470.0,0.81482901]
[1748213116433,0.02042697,108530.0,108520.0,0.1750819]
[1748213116645,0.02042697,108530.0,108520.0,0.41190746]
[1748213116845,0.02042697,108530.0,108520.0,0.41190763]
[1748213117048,0.02964084,108530.0,108520.0,0.42112192]
[1748213117430,0.02042714,108530.0,108520.0,0.42112192]
[1748213117641,0.03514185,108530.0,108520.0,0.42212192]
[1748213117824,0.03514176,108530.0,108520.0,0.42212192]
[1748213118028,0.04435563,108530.0,108520.0,0.42212192]
[1748213118454,0.03814176,108530.0,108520.0,0.42212192]
[1748213118664,0.04735563,108530.0,108520.0,0.42212192]
[1748213119031,0.05656958,108530.0,108520.0,0.42212192]
[1748213119598,0.2132095,108530.0,108520.0,0.001]
[1748213119871,0.2132095,108530.0,108520.0,0.14828]
[1748213120921,0.2576095,108530.0,108520.0,0.001]
[1748213121786,0.2132095,108530.0,108520.0,0.14843826]
[1748213121992,0.2132095,108530.0,108520.0,0.15765315]
[1748213122171,0.20399563,108530.0,108520.0,0.15765315]
[1748213122380,0.19478168,108530.0,108520.0,0.01021489]
[1748213122698,0.19478168,108530.0,108520.0,0.15765315]
[1748213122831,0.19478168,108530.0,108520.0,0.01021489]
[1748213123034,0.19478168,108530.0,108520.0,0.15765315]
[1748213123354,0.19478168,108530.0,108520.0,0.01021489]
[1748213123566,0.19478168,108530.0,108520.0,0.15765306]
[1748213123766,0.19478168,108530.0,108520.0,0.14843826]
[1748213123936,0.19478168,108530.0,108520.0,0.001]
[1748213124135,0.19478168,108530.0,108520.0,0.14843826]
[1748213124337,0.19478168,108530.0,108520.0,0.15765315]
[1748213125736,0.01971445,108530.0,108520.0,0.27484235]
[1748213126072,0.04735537,108530.0,108520.0,0.27484235]
[1748213126277,0.03814134,108530.0,108520.0,0.27484235]
[1748213126444,0.04735521,108530.0,108520.0,0.27484235]